fUST/lending_fUST_20250126
["ID","MTS","AMOUNT","RATE_DAILY","PERIOD"]
[350419197,1737857087030,10000.0,0.00013,2]
[350419198,1737857087067,10000.0,0.00013,2]
[350419199,1737857087104,10000.0,0.00013,2]
[350419200,1737857087140,10000.0,0.00013,2]
[350419201,1737857087176,10000.0,0.00013,2]
[350419202,1737857087213,10000.0,0.00013,2]
[350419203,1737857087250,10000.0,0.00013,2]
[350419204,1737857087290,10000.0,0.00013,2]
[350419205,1737857087327,10000.0,0.00013,2]
[350419206,1737857087361,75237.60290487,0.00013,2]
[350419207,1737857136513,178.0,0.00024,120]
[350419390,1737857435707,-280.873,0.0001587,2]
[350419391,1737857435718,-179.58498411,0.0001599,2]
[350419392,1737857435728,-163.40667111,0.00016338,2]
[350419393,1737857435739,-5068.98325068,0.00016435,2]
[350419394,1737857435751,-510.9987413,0.00016437,2]
[350419395,1737857435761,-164.7826403,0.00016437,2]
[350419396,1737857435772,-500.0,0.00016437,2]
[350419397,1737857435783,-504.00590151,0.00016437,2]
[350419398,1737857435794,-503.59834773,0.00016437,2]
[350419399,1737857435804,-505.86137405,0.00016437,2]
[350419400,1737857435816,-500.0,0.00016437,2]
[350419401,1737857435828,-500.0,0.00016437,2]
[350419402,1737857435838,-153.355739,0.00016438,2]
[350419403,1737857435848,-151.0,0.00016438,2]
[350419404,1737857435858,-153.780787,0.00016438,2]
[350419405,1737857435867,-162.439875,0.00016438,2]
[350419406,1737857436062,-152.20336,0.00016438,2]
[350419407,1737857436082,-151.857372,0.00016438,2]
[350419408,1737857436092,-151.676466,0.00016438,2]
[350419409,1737857436103,-151.0,0.00016438,2]
[350419410,1737857436112,-154.432312,0.00016438,2]
[350419411,1737857436121,-151.847099,0.00016438,2]
[350419412,1737857436131,-503.31382932,0.00016438,2]
[350419413,1737857436142,-502.14660189,0.00016438,2]
[350419414,1737857436152,-500.99805949,0.00016438,2]
[350419415,1737857436162,-502.13639645,0.00016438,2]
[350419416,1737857436171,-503.56771243,0.00016438,2]
[350419417,1737857436181,-503.52065366,0.00016438,2]
[350419418,1737857436190,-153.697661,0.00016438,2]
[350419419,1737857436200,-508.06951728,0.00016438,2]
[350419420,1737857436209,-503.40160853,0.00016438,2]
[350419421,1737857436219,-504.23881143,0.00016438,2]
[350419422,1737857436228,-347.99093712,0.00016438,2]
[350419423,1737857436238,-503.96097321,0.00016438,2]
[350419424,1737857436248,-517.37910675,0.00016438,2]
[350419425,1737857436258,-504.09872577,0.00016438,2]
[350419426,1737857436268,-504.8550878,0.00016438,2]
[350419427,1737857436279,-502.67265743,0.00016438,2]
[350419428,1737857436288,-505.29806935,0.00016438,2]
[350419429,1737857436298,-504.85044752,0.00016438,2]
[350419430,1737857436308,-153.229265,0.00016438,2]
[350419431,1737857436318,-509.62130473,0.00016438,2]
[350419432,1737857436328,-151.796752,0.00016438,2]
[350419433,1737857436337,-505.30914593,0.00016438,2]
[350419434,1737857436347,-283.12960311,0.00016438,2]
[350419435,1737857436357,-501.88800497,0.00016438,2]
[350419436,1737857436367,-505.31103707,0.00016438,2]
[350419437,1737857436377,-503.42307761,0.00016438,2]
[350419438,1737857436387,-152.704405,0.00016438,2]
[350419439,1737857436397,-504.57246114,0.00016438,2]
[350419440,1737857436406,-154.967134,0.00016438,2]
[350419441,1737857436415,-504.34877858,0.00016438,2]
[350419442,1737857436425,-503.60580701,0.00016438,2]
[350419443,1737857436434,-519.87624797,0.00016438,2]
[350419444,1737857436443,-152.668527,0.00016438,2]
[350419445,1737857436452,-151.0,0.00016438,2]
[350419446,1737857436462,-151.0,0.00016438,2]
[350419447,1737857436472,-502.62155561,0.00016438,2]
[350419448,1737857436482,-151.0,0.00016438,2]
[350419449,1737857436491,-151.0,0.00016438,2]
[350419450,1737857436501,-151.0,0.00016438,2]
[350419451,1737857436510,-151.0,0.00016438,2]
[350419452,1737857436520,-151.0,0.00016438,2]
[350419453,1737857436531,-151.0,0.00016438,2]
[350419454,1737857436540,-151.0,0.00016438,2]
[350419455,1737857436549,-151.0,0.00016438,2]
[350419456,1737857436559,-504.77249585,0.00016438,2]
[350419457,1737857436569,-502.69345257,0.00016438,2]
[350419458,1737857436579,-553.88922677,0.00016438,2]
[350419459,1737857436588,-151.0,0.00016438,2]
[350419460,1737857436598,-151.0,0.00016438,2]
[350419461,1737857436608,-151.91853,0.00016438,2]
[350419462,1737857436617,-502.03796005,0.00016438,2]
[350419463,1737857436627,-501.48853684,0.00016438,2]
[350419464,1737857436636,-510.29395685,0.00016438,2]
[350419465,1737857436646,-502.86687281,0.00016438,2]
[350419466,1737857436655,-504.91580801,0.00016438,2]
[350419467,1737857436665,-110.40718812,0.00016438,2]
[350419468,1737857436680,-290.43901907,0.00016438,2]
[350419469,1737857436690,-501.42066024,0.00016438,2]
[350419470,1737857436700,-206.140716,0.00016438,2]
[350419472,1737857438064,-297.3294459,0.00016438,2]
[350419473,1737857438074,-502.3949607,0.00016438,2]
[350419474,1737857438084,-503.58179686,0.00016438,2]
[350419475,1737857438095,-502.13309904,0.00016438,2]
[350419476,1737857438105,-187.6824065,0.00016438,2]
[350419477,1737857438118,-313.32183419,0.00016438,2]
[350419478,1737857438127,-503.4600382,0.00016438,2]
[350419479,1737857438138,-500.0,0.00016438,2]
[350419480,1737857438148,-503.30285691,0.00016438,2]
[350419481,1737857438158,-500.88246432,0.00016438,2]
[350419482,1737857438169,-151.0,0.00016438,2]
[350419483,1737857438178,-506.399378,0.00016438,2]
[350419484,1737857438188,-217.02469843,0.00016438,2]
[350419485,1737857438197,-432.96712906,0.00016438,2]
[350419486,1737857438206,-502.74178063,0.00016438,2]
[350419487,1737857438216,-306.83742161,0.00016438,2]
[350419488,1737857438228,-200.72852546,0.00016438,2]
[350419489,1737857438238,-156.428839,0.00016438,2]
[350419490,1737857438247,-160.37263074,0.00016438,2]
[350419491,1737857438260,-398.84473395,0.00016438,2]
[350419492,1737857438270,-500.0,0.00016438,2]
[350419493,1737857438280,-507.73972759,0.00016438,2]
[350419494,1737857438289,-509.24872035,0.00016438,2]
[350419495,1737857438299,-507.39097219,0.00016438,2]
[350419496,1737857438308,-505.78319166,0.00016438,2]
[350419497,1737857438318,-170.114969,0.00016438,2]
[350419498,1737857438327,-517.82826148,0.00016438,2]
[350419499,1737857438337,-505.48527567,0.00016438,2]
[350419500,1737857438346,-508.51968583,0.00016438,2]
[350419501,1737857438356,-555.92357489,0.00016438,2]
[350419502,1737857438366,-151.0,0.00016438,2]
[350419503,1737857438376,-151.0,0.00016438,2]
[350419504,1737857438386,-151.5814,0.00016438,2]
[350419505,1737857438396,-500.0,0.00016438,2]
[350419506,1737857438406,-500.0,0.00016438,2]
[350419507,1737857438415,-505.48082638,0.00016438,2]
[350419508,1737857438424,-504.1755388,0.00016438,2]
[350419509,1737857438434,-488.70602574,0.00016438,2]
[350419510,1737857438444,-504.36291925,0.00016438,2]
[350419511,1737857438454,-503.88556251,0.00016438,2]
[350419512,1737857438464,-543.35365624,0.00016438,2]
[350419513,1737857438474,-505.48772944,0.00016438,2]
[350419514,1737857438483,-500.0,0.00016438,2]
[350419515,1737857438493,-502.66381532,0.00016438,2]
[350419516,1737857438504,-230.146267,0.00016438,2]
[350419517,1737857438514,-503.30317923,0.00016438,2]
[350419518,1737857438524,-500.0,0.00016438,2]
[350419519,1737857438533,-533.94100708,0.00016438,2]
[350419520,1737857438543,-500.0,0.00016438,2]
[350419521,1737857438554,-500.0,0.00016438,2]
[350419522,1737857438564,-501.22434279,0.00016438,2]
[350419523,1737857438575,-505.90889732,0.00016438,2]
[350419524,1737857438585,-501.85761673,0.00016438,2]
[350419525,1737857438595,-504.69956335,0.00016438,2]
[350419526,1737857438605,-502.21784409,0.00016438,2]
[350419527,1737857438614,-508.70925368,0.00016438,2]
[350419528,1737857438624,-385.12979829,0.00016438,2]
[350419529,1737857438634,-500.0,0.00016438,2]
[350419530,1737857438643,-509.07875061,0.00016438,2]
[350419531,1737857438653,-507.06628736,0.00016438,2]
[350419532,1737857438663,-502.71506601,0.00016438,2]
[350419533,1737857438672,-510.19745934,0.00016438,2]
[350419534,1737857438682,-500.67579233,0.00016438,2]
[350419535,1737857438692,-503.17185882,0.00016438,2]
[350419536,1737857438701,-151.0,0.00016438,2]
[350419537,1737857438710,-163.785679,0.00016438,2]
[350419538,1737857438720,-508.24861524,0.00016438,2]
[350419539,1737857438730,-502.30901541,0.00016438,2]
[350419540,1737857438740,-502.63479567,0.00016438,2]
[350419541,1737857438749,-500.0,0.00016438,2]
[350419542,1737857438758,-505.21889172,0.00016438,2]
[350419543,1737857438768,-507.69297172,0.00016438,2]
[350419544,1737857438778,-503.56292084,0.00016438,2]
[350419545,1737857438788,-400.27419309,0.00016438,2]
[350419546,1737857438801,-99.72580691,0.00016438,2]
[350419547,1737857438811,-500.0,0.00016438,2]
[350419548,1737857438820,-152.17104177,0.00016438,2]
[350419549,1737857438832,-350.73380378,0.00016438,2]
[350419550,1737857438842,-505.76845257,0.00016438,2]
[350419551,1737857438851,-505.6151331,0.00016438,2]
[350419552,1737857438860,-507.05217585,0.00016438,2]
[350419553,1737857438870,-500.0,0.00016438,2]
[350419554,1737857438879,-500.0,0.00016438,2]
[350419555,1737857438889,-503.03342127,0.00016438,2]
[350419556,1737857438899,-589.45392859,0.00016438,2]
[350419557,1737857438909,-504.65743999,0.00016438,2]
[350419558,1737857438918,-504.43324756,0.00016438,2]
[350419559,1737857438928,-506.87166614,0.00016438,2]
[350419560,1737857438938,-507.72461146,0.00016438,2]
[350419561,1737857438948,-505.13905445,0.00016438,2]
[350419562,1737857438957,-151.0,0.00016438,2]
[350419563,1737857438967,-151.0,0.00016438,2]
[350419564,1737857438977,-151.0,0.00016438,2]
[350419565,1737857438986,-151.0,0.00016438,2]
[350419566,1737857438996,-502.50497943,0.00016438,2]
[350419567,1737857439006,-206.029564,0.00016438,2]
[350419568,1737857439016,-504.97581693,0.00016438,2]
[350419569,1737857439025,-151.0,0.00016438,2]
[350419570,1737857439035,-151.0,0.00016438,2]
[350419571,1737857439044,-151.0,0.00016438,2]
[350419572,1737857439056,-151.0,0.00016438,2]
[350419573,1737857439067,-503.182617,0.00016438,2]
[350419574,1737857439076,-500.0,0.00016438,2]
[350419575,1737857439085,-229.45427,0.00016438,2]
[350419576,1737857439096,-229.45427,0.00016438,2]
[350419577,1737857439106,-229.45427,0.00016438,2]
[350419578,1737857439116,-229.45427,0.00016438,2]
[350419579,1737857439125,-229.45427,0.00016438,2]
[350419580,1737857439136,-229.45427,0.00016438,2]
[350419581,1737857439145,-229.45427,0.00016438,2]
[350419582,1737857439155,-229.45427,0.00016438,2]
[350419583,1737857439165,-151.0,0.00016438,2]
[350419584,1737857439174,-151.0,0.00016438,2]
[350419585,1737857439183,-151.0,0.00016438,2]
[350419586,1737857439193,-151.0,0.00016438,2]
[350419587,1737857439202,-534.06741272,0.00016438,2]
[350419588,1737857439212,-500.0,0.00016438,2]
[350419589,1737857439221,-6597.24,0.00016438,2]
[350419590,1737857439231,-507.97466765,0.00016438,2]
[350419591,1737857439241,-505.9251716,0.00016438,2]
[350419592,1737857439257,-500.0,0.00016438,2]
[350419593,1737857439271,-151.0,0.00016438,2]
[350419594,1737857439281,-151.0,0.00016438,2]
[350419595,1737857439290,-151.0,0.00016438,2]
[350419596,1737857439301,-151.0,0.00016438,2]
[350419597,1737857439311,-508.29794389,0.00016438,2]
[350419598,1737857439321,-505.44325739,0.00016438,2]
[350419599,1737857439330,-151.0,0.00016438,2]
[350419600,1737857439340,-500.0,0.00016438,2]
[350419601,1737857439350,-151.0,0.00016438,2]
[350419602,1737857439359,-151.0,0.00016438,2]
[350419603,1737857439370,-151.0,0.00016438,2]
[350419604,1737857439380,-507.70861026,0.00016438,2]
[350419605,1737857439390,-151.0,0.00016438,2]
[350419606,1737857439399,-151.0,0.00016438,2]
[350419607,1737857439411,-151.0,0.00016438,2]
[350419608,1737857439421,-151.0,0.00016438,2]
[350419609,1737857439431,-151.0,0.00016438,2]
[350419610,1737857439441,-151.0,0.00016438,2]
[350419611,1737857439451,-151.0,0.00016438,2]
[350419612,1737857439462,-154.575582,0.00016438,2]
[350419613,1737857439472,-500.0,0.00016438,2]
[350419614,1737857439482,-500.0,0.00016438,2]
[350419615,1737857439491,-507.33645022,0.00016438,2]
[350419616,1737857439502,-230.041488,0.00016438,2]
[350419617,1737857439512,-502.59899284,0.00016438,2]
[350419618,1737857439522,-745.76,0.00016438,2]
[350419619,1737857439533,-500.0,0.00016438,2]
[350419620,1737857439543,-504.89740297,0.00016438,2]
[350419621,1737857439552,-500.0,0.00016438,2]
[350419622,1737857439562,-156.50468487,0.00016438,2]
[350419623,1737857439572,-504.58231924,0.00016438,2]
[350419624,1737857439582,-503.07638115,0.00016438,2]
[350419625,1737857439592,-508.05871793,0.00016438,2]
[350419626,1737857439602,-500.0,0.00016438,2]
[350419627,1737857439612,-181.345569,0.00016438,2]
[350419628,1737857439623,-181.345569,0.00016438,2]
[350419629,1737857439633,-509.05672534,0.00016438,2]
[350419630,1737857439643,-181.345569,0.00016438,2]
[350419631,1737857439654,-181.345569,0.00016438,2]
[350419632,1737857439665,-111.29310503,0.00016438,2]
[350419635,1737857439682,-454.74689497,0.00016438,2]
[350419636,1737857439692,-181.345569,0.00016438,2]
[350419637,1737857439702,-181.345569,0.00016438,2]
[350419638,1737857439711,-181.345569,0.00016438,2]
[350419639,1737857439721,-181.345569,0.00016438,2]
[350419640,1737857439730,-502.65606093,0.00016438,2]
[350419641,1737857439740,-503.38939158,0.00016438,2]
[350419642,1737857439750,-1266.17,0.00016438,2]
[350419643,1737857439759,-151.0,0.00016438,2]
[350419644,1737857439769,-647.32713024,0.00016438,2]
[350419645,1737857439779,-1926.51,0.00016438,2]
[350419646,1737857439788,-151.0,0.00016438,2]
[350419647,1737857439797,-151.0,0.00016438,2]
[350419649,1737857439807,-500.0,0.00016438,2]
[350419651,1737857439817,-405.34748238,0.00016438,2]
[350419688,1737857440290,-100.04612067,0.00016438,2]
[350419689,1737857440301,-506.35447551,0.00016438,2]
[350419690,1737857440311,-636.03091585,0.00016438,2]
[350419691,1737857440322,-570.77241642,0.00016438,2]
[350419692,1737857440332,-152.395576,0.00016438,2]
[350419693,1737857440342,-55.05857099,0.00016438,2]
[350419694,1737857440354,-334.98124228,0.00016438,2]
[350419695,1737857440367,-109.96018673,0.00016438,2]
[350419696,1737857440377,-292.738527,0.00016438,2]
[350419697,1737857440386,-500.0,0.00016438,2]
[350419698,1737857440396,-452.29823198,0.00016438,2]
[350419699,1737857440409,-47.70176802,0.00016438,2]
[350419700,1737857440420,-350.37423198,0.00016438,2]
[350419701,1737857440432,-156.4769362,0.00016438,2]
[350419702,1737857440442,-509.44903438,0.00016438,2]
[350419703,1737857440452,-503.43019944,0.00016438,2]
[350419704,1737857440462,-206.04089209,0.00016438,2]
[350419705,1737857440481,-293.95910791,0.00016438,2]
[350419706,1737857440491,-151.0,0.00016438,2]
[350419707,1737857440501,-151.0,0.00016438,2]
[350419708,1737857440511,-151.0,0.00016438,2]
[350419709,1737857440521,-151.0,0.00016438,2]
[350419710,1737857440530,-151.0,0.00016438,2]
[350419711,1737857440539,-84.89573602,0.00016438,2]
[350419712,1737857440551,-66.10426398,0.00016438,2]
[350419713,1737857440561,-158.349027,0.00016438,2]
[350419714,1737857440571,-504.76300659,0.00016438,2]
[350419715,1737857440581,-527.1648692,0.00016438,2]
[350419716,1737857440592,-3951.2151308,0.00016438,2]
[350419717,1737857440603,-1046.3448936,0.00016438,2]
[350419718,1737857440614,-974.8951064,0.00016438,2]
[350419719,1737857440624,-321.3315361,0.00016438,2]
[350419720,1737857440636,-178.6684639,0.00016438,2]
[350419721,1737857440645,-503.30826643,0.00016438,2]
[350419722,1737857440655,-152.69538489,0.00016438,2]
[350419732,1737857446181,-352.76501248,0.00016438,2]
[350419733,1737857446191,-180.29814893,0.00016438,2]
[350419734,1737857446200,-798.61,0.00016438,2]
[350419735,1737857446209,-503.09411404,0.00016438,2]
[350419736,1737857446219,-622.04,0.00016438,2]
[350419737,1737857446228,-503.49606681,0.00016438,2]
[350419738,1737857446237,-834.01,0.00016438,2]
[350419739,1737857446247,-500.0,0.00016438,2]
[350419740,1737857446257,-500.0,0.00016438,2]
[350419741,1737857446266,-151.0,0.00016438,2]
[350419742,1737857446275,-151.0,0.00016438,2]
[350419743,1737857446285,-151.0,0.00016438,2]
[350419744,1737857446294,-151.0,0.00016438,2]
[350419745,1737857446303,-505.41793361,0.00016438,2]
[350419746,1737857446313,-506.51802687,0.00016438,2]
[350419747,1737857446322,-500.0,0.00016438,2]
[350419748,1737857446331,-644.94,0.00016438,2]
[350419749,1737857446341,-500.0,0.00016438,2]
[350419751,1737857446350,-506.79392162,0.00016438,2]
[350419753,1737857446359,-502.10944822,0.00016438,2]
[350419755,1737857446370,-500.0,0.00016438,2]
[350419757,1737857446380,-531.94,0.00016438,2]
[350419759,1737857446389,-505.38182852,0.00016438,2]
[350419761,1737857446398,-501.69567167,0.00016438,2]
[350419763,1737857446407,-183.383048,0.00016438,2]
[350419765,1737857446417,-2652.58,0.00016438,2]
[350419767,1737857446426,-500.0,0.00016438,2]
[350419769,1737857446436,-500.0,0.00016438,2]
[350419770,1737857446446,-753.95,0.00016438,2]
[350419771,1737857446455,-547.59,0.00016438,2]
[350419772,1737857446464,-714.69,0.00016438,2]
[350419773,1737857446474,-6322.36,0.00016438,2]
[350419774,1737857446483,-4129.8309355,0.00016438,2]
[350419775,1737857446492,-152.612151,0.00016438,2]
[350419776,1737857446501,-505.92315896,0.00016473,2]
[350419777,1737857446511,-156.16742887,0.00016473,2]
[350419778,1737857446520,-501.39408228,0.00016473,2]
[350419779,1737857446530,-500.86561204,0.00016473,2]
[350419780,1737857446539,-162.49167858,0.00016473,2]
[350419781,1737857446548,-500.0,0.00016473,2]
[350419782,1737857446557,-504.19874294,0.00016473,2]
[350419783,1737857446567,-500.74181003,0.00016473,2]
[350419784,1737857446576,-500.97294925,0.00016473,2]
[350419785,1737857446585,-501.42228145,0.00016473,2]
[350419786,1737857446595,-577.17173094,0.00016473,2]
[350419787,1737857446605,-500.0,0.00016473,2]
[350419788,1737857446614,-258.31075398,0.00016473,2]
[350419789,1737857446624,-500.60257822,0.00016473,2]
[350419790,1737857446633,-500.0,0.00016473,2]
[350419791,1737857446642,-501.02683054,0.00016473,2]
[350419792,1737857446652,-170.31633,0.00016473,2]
[350419793,1737857446661,-151.0,0.00016519,2]
[350419794,1737857446671,-150.805,0.00016548,2]
[350419795,1737857446681,-2079.969,0.00016548,2]
[350419796,1737857446690,-538.287,0.00016548,2]
[350419797,1737857446699,-2314.014,0.00016548,2]
[350419798,1737857446709,-395.0,0.00016548,2]
[350419799,1737857446718,-151.0,0.00016548,2]
[350419800,1737857446727,-151.0,0.00016548,2]
[350419801,1737857446736,-151.0,0.00016548,2]
[350419802,1737857446745,-229.45427,0.00016548,2]
[350419803,1737857446754,-229.45427,0.00016548,2]
[350419804,1737857446765,-181.345569,0.00016548,2]
[350419805,1737857446774,-181.345569,0.00016548,2]
[350419806,1737857446783,-151.0,0.00016548,2]
[350419807,1737857446793,-256.00516306,0.00016574,2]
[350419808,1737857446802,-500.0,0.00016574,2]
[350419809,1737857446812,-154.69604146,0.00016574,2]
[350419810,1737857446821,-500.0,0.00016574,2]
[350419811,1737857446830,-159.450478,0.00016575,2]
[350419812,1737857446840,-160.954184,0.00016575,2]
[350419813,1737857446849,-151.0,0.00016575,2]
[350419814,1737857446858,-228.236602,0.00016575,2]
[350419815,1737857446868,-255.82153155,0.00016575,2]
[350419816,1737857446877,-345.26041902,0.00016575,2]
[350419817,1737857446886,-500.0,0.00016575,2]
[350419818,1737857446895,-500.0,0.00016575,2]
[350419819,1737857446904,-243.69512762,0.00016575,2]
[350419820,1737857446917,-256.30487238,0.00016575,2]
[350419821,1737857446927,-268.27328668,0.00016575,2]
[350419822,1737857446936,-540.21321174,0.00016575,2]
[350419823,1737857446945,-220.67066851,0.00016575,2]
[350419824,1737857446954,-282.1046706,0.00016575,2]
[350419825,1737857446963,-245.62423995,0.00016575,2]
[350419826,1737857446973,-381.22840509,0.00016575,2]
[350419827,1737857446982,-234.77506454,0.00016575,2]
[350419828,1737857446991,-500.0,0.00016575,2]
[350419829,1737857447000,-151.0,0.00016575,2]
[350419830,1737857447010,-151.0,0.00016575,2]
[350419831,1737857447019,-151.0,0.00016575,2]
[350419832,1737857447028,-151.0,0.00016575,2]
[350419833,1737857447037,-354.50888385,0.00016575,2]
[350419834,1737857447046,-229.45427,0.00016575,2]
[350419835,1737857447057,-229.45427,0.00016575,2]
[350419836,1737857447067,-229.45427,0.00016575,2]
[350419837,1737857447077,-229.45427,0.00016575,2]
[350419838,1737857447086,-151.0,0.00016575,2]
[350419839,1737857447097,-266.180933,0.00016575,2]
[350419840,1737857447107,-500.0,0.00016575,2]
[350419841,1737857447116,-193.58530495,0.00016575,2]
[350419842,1737857447125,-500.0,0.00016575,2]
[350419843,1737857447135,-151.0,0.00016575,2]
[350419844,1737857447144,-151.0,0.00016575,2]
[350419845,1737857447153,-151.0,0.00016575,2]
[350419846,1737857447163,-151.0,0.00016575,2]
[350419847,1737857447172,-500.0,0.00016575,2]
[350419848,1737857447181,-500.0,0.00016575,2]
[350419849,1737857447190,-250.53628336,0.00016575,2]
[350419850,1737857447199,-161.00494139,0.00016575,2]
[350419851,1737857447209,-246.6679169,0.00016575,2]
[350419852,1737857447220,-181.345569,0.00016575,2]
[350419853,1737857447229,-566.04,0.00016575,2]
[350419854,1737857447239,-181.345569,0.00016575,2]
[350419855,1737857447249,-181.345569,0.00016575,2]
[350419856,1737857447259,-181.345569,0.00016575,2]
[350419857,1737857447269,-1266.17,0.00016575,2]
[350419858,1737857447277,-1926.51,0.00016575,2]
[350419859,1737857447286,-500.0,0.00016575,2]
[350419860,1737857447296,-500.0,0.00016575,2]
[350419861,1737857447305,-500.0,0.00016575,2]
[350419862,1737857447317,-500.0,0.00016575,2]
[350419863,1737857447326,-346.21550776,0.00016575,2]
[350419864,1737857447335,-151.0,0.00016575,2]
[350419865,1737857447345,-151.0,0.00016575,2]
[350419867,1737857447354,-4478.38,0.00016575,2]
[350419869,1737857447364,-2021.24,0.00016575,2]
[350419870,1737857447373,-500.0,0.00016575,2]
[350419871,1737857447382,-798.61,0.00016575,2]
[350419872,1737857447392,-622.04,0.00016575,2]
[350419873,1737857447401,-834.01,0.00016575,2]
[350419874,1737857447411,-500.0,0.00016575,2]
[350419876,1737857447420,-500.0,0.00016575,2]
[350419877,1737857447429,-151.0,0.00016575,2]
[350419878,1737857447438,-151.0,0.00016575,2]
[350419879,1737857447447,-500.0,0.00016575,2]
[350419880,1737857447456,-644.94,0.00016575,2]
[350419881,1737857447465,-350.944888,0.00016575,2]
[350419882,1737857447475,-500.0,0.00016575,2]
[350419883,1737857447484,-531.94,0.00016575,2]
[350419884,1737857447494,-2652.58,0.00016575,2]
[350419885,1737857447504,-500.0,0.00016575,2]
[350419886,1737857447514,-299.26899633,0.00016575,2]
[350419887,1737857447523,-753.95,0.00016575,2]
[350419888,1737857447532,-547.59,0.00016575,2]
[350419889,1737857447542,-714.69,0.00016575,2]
[350419890,1737857447551,-6322.36,0.00016575,2]
[350419891,1737857447560,-310.293085,0.000166,2]
[350419892,1737857447570,-151.0,0.00016612,2]
[350419893,1737857447579,-151.0,0.00016612,2]
[350419894,1737857447588,-151.0,0.00016612,2]
[350419895,1737857447598,-151.0,0.00016612,2]
[350419896,1737857447607,-246.406943,0.00016612,2]
[350419897,1737857447616,-36916.59839469,0.00016612,2]
[350419898,1737857447625,-501.26794667,0.00016642,2]
[350419899,1737857447635,-359.2938507,0.000167,2]
[350419900,1737857447645,-354.0685108,0.000167,2]
[350419901,1737857447654,-354.0685108,0.000167,2]
[350419902,1737857447663,-354.0685108,0.000167,2]
[350419903,1737857447673,-152.0,0.00016709,2]
[350419904,1737857447682,-500.0,0.00016712,2]
[350419905,1737857447691,-635.6531417,0.00016712,2]
[350419906,1737857447700,-500.0,0.00016712,2]
[350419907,1737857447710,-500.0,0.00016712,2]
[350419908,1737857447719,-151.0,0.00016712,2]
[350419909,1737857447731,-151.0,0.00016712,2]
[350419910,1737857447739,-280.509041,0.00016712,2]
[350419911,1737857447749,-229.45427,0.00016712,2]
[350419912,1737857447759,-229.45427,0.00016712,2]
[350419913,1737857447768,-229.45427,0.00016712,2]
[350419914,1737857447777,-229.45427,0.00016712,2]
[350419915,1737857447786,-348.19832871,0.00016712,2]
[350419916,1737857447796,-500.0,0.00016712,2]
[350419917,1737857447806,-151.0,0.00016712,2]
[350419918,1737857447815,-151.0,0.00016712,2]
[350419919,1737857447826,-500.0,0.00016712,2]
[350419920,1737857447835,-500.0,0.00016712,2]
[350419921,1737857447845,-566.04,0.00016712,2]
[350419922,1737857447854,-181.345569,0.00016712,2]
[350419923,1737857447864,-181.345569,0.00016712,2]
[350419924,1737857447873,-181.345569,0.00016712,2]
[350419925,1737857447910,-181.345569,0.00016712,2]
[350419926,1737857447920,-1266.17,0.00016712,2]
[350419927,1737857447929,-1926.51,0.00016712,2]
[350419928,1737857447938,-500.0,0.00016712,2]
[350419929,1737857447948,-500.0,0.00016712,2]
[350419930,1737857447957,-500.0,0.00016712,2]
[350419931,1737857447966,-500.0,0.00016712,2]
[350419932,1737857447975,-221.777997,0.00016712,2]
[350419933,1737857447985,-4478.38,0.00016712,2]
[350419934,1737857447994,-2021.24,0.00016712,2]
[350419935,1737857448003,-500.0,0.00016712,2]
[350419936,1737857448012,-798.61,0.00016712,2]
[350419937,1737857448021,-622.04,0.00016712,2]
[350419938,1737857448031,-834.01,0.00016712,2]
[350419939,1737857448040,-500.0,0.00016712,2]
[350419940,1737857448049,-500.0,0.00016712,2]
[350419941,1737857448063,-500.0,0.00016712,2]